[Event "Titled Tuesday Blitz May 16 Late 2023"]
[White "Deac, Bogdan-Daniel"]
[Black "Riehle, Marco"]
[WhiteFideId "1226380"]
[BlackFideId "12904392"]
[WhiteElo "2649"]
[BlackElo "2462"]
[Result "1-0"]
[Round "06"]
[TimeControl "180+2"]
[Date "2023.05.16"]
[WhiteClock "0:00:06"]
[BlackClock "0:00:28"]

1. b3 {[%clk 0:03:00]}  e5 {[%clk 0:02:59]} 2. Bb2 {[%clk 0:03:01]}  Nc6 {[%clk 0:02:59]} 3. Nf3 {[%clk 0:03:02]}  e4 {[%clk 0:02:57]} 4. Nd4 {[%clk 0:03:02]}  Nxd4 {[%clk 0:02:58]} 5. Bxd4 {[%clk 0:03:03]}  Nf6 {[%clk 0:02:56]} 6. e3 {[%clk 0:03:03]}  d5 {[%clk 0:02:51]} 7. c4 {[%clk 0:03:02]}  dxc4 {[%clk 0:02:48]} 8. Bxc4 {[%clk 0:03:01]}  Be7 {[%clk 0:02:48]} 9. Nc3 {[%clk 0:03:00]}  O-O {[%clk 0:02:46]} 10. O-O {[%clk 0:02:59]}  Bf5 {[%clk 0:02:42]} 11. f3 {[%clk 0:02:57]}  exf3 {[%clk 0:02:41]} 12. Qxf3 {[%clk 0:02:57]}  Bg6 {[%clk 0:02:42]} 13. Qxb7 {[%clk 0:02:47]}  c5 {[%clk 0:02:41]} 14. Be5 {[%clk 0:01:40]}  Qxd2 {[%clk 0:02:23]} 15. Qxe7 {[%clk 0:01:40]}  Qxe3+ {[%clk 0:02:23]} 16. Kh1 {[%clk 0:01:40]}  Rae8 {[%clk 0:02:17]} 17. Bxf6 {[%clk 0:00:47]}  Rxe7 {[%clk 0:02:15]} 18. Nd5 {[%clk 0:00:48]}  gxf6 {[%clk 0:01:50]} 19. Nxe3 {[%clk 0:00:47]}  Rxe3 {[%clk 0:01:51]} 20. Rxf6 {[%clk 0:00:47]}  Rfe8 {[%clk 0:01:48]} 21. Kg1 {[%clk 0:00:40]}  Re1+ {[%clk 0:01:45]} 22. Rxe1 {[%clk 0:00:39]}  Rxe1+ {[%clk 0:01:46]} 23. Kf2 {[%clk 0:00:40]}  Ra1 {[%clk 0:01:44]} 24. Ra6 {[%clk 0:00:35]}  Bb1 {[%clk 0:01:37]} 25. a4 {[%clk 0:00:30]}  Ra2+ {[%clk 0:01:10]} 26. Ke1 {[%clk 0:00:13]}  Ra1 {[%clk 0:00:59]} 27. Kd2 {[%clk 0:00:10]}  Ra2+ {[%clk 0:00:59]} 28. Kc1 {[%clk 0:00:08]}  Bg6 {[%clk 0:00:53]} 29. g3 {[%clk 0:00:05]}  Rxh2 {[%clk 0:00:49]} 30. Rxa7 {[%clk 0:00:06]}  Rh3 {[%clk 0:00:49]} 31. a5 {[%clk 0:00:05]}  Rxg3 {[%clk 0:00:50]} 32. a6 {[%clk 0:00:04]}  Rf3 {[%clk 0:00:42]} 33. Rc7 {[%clk 0:00:03]}  Be4 {[%clk 0:00:41]} 34. Rxc5 {[%clk 0:00:02]}  Rc3+ {[%clk 0:00:33]} 35. Kb2 {[%clk 0:00:02]}  Rc2+ {[%clk 0:00:33]} 36. Ka3 {[%clk 0:00:02]}  h5 {[%clk 0:00:29]} 37. Rxh5 {[%clk 0:00:02]}  Rc1 {[%clk 0:00:27]} 38. Re5 {[%clk 0:00:02]}  Bg2 {[%clk 0:00:27]} 39. Rg5+ {[%clk 0:00:01]}  Kf8 {[%clk 0:00:27]} 40. Rxg2 {[%clk 0:00:02]}  Ra1+ {[%clk 0:00:27]} 41. Ra2 {[%clk 0:00:03]}  Re1 {[%clk 0:00:28]} 42. a7 {[%clk 0:00:03]}  Re8 {[%clk 0:00:27]} 43. Bd5 {[%clk 0:00:03]}  Kg7 {[%clk 0:00:27]} 44. a8=Q {[%clk 0:00:04]}  Re5 {[%clk 0:00:27]} 45. Qc6 {[%clk 0:00:04]}  f5 {[%clk 0:00:27]} 46. Rg2+ {[%clk 0:00:05]}  Kh7 {[%clk 0:00:27]} 47. Qg6+ {[%clk 0:00:05]}  Kh8 {[%clk 0:00:28]} 48. Qh6# {[%clk 0:00:06]} 1-0


[Site "https://www.chess.com"]

[Event "Titled Tuesday Blitz May 16 Late 2023"]
[White "Caruana, Fabiano"]
[Black "Sviridov, Valery"]
[WhiteFideId "2020009"]
[BlackFideId "4120680"]
[WhiteElo "2837"]
[BlackElo "2457"]
[Result "1-0"]
[Round "06"]
[TimeControl "180+2"]
[Date "2023.05.16"]
[WhiteClock "0:01:12"]
[BlackClock "0:01:10"]

1. e4 {[%clk 0:03:00]}  Nf6 {[%clk 0:02:56]} 2. e5 {[%clk 0:03:00]}  Nd5 {[%clk 0:02:57]} 3. d4 {[%clk 0:03:00]}  d6 {[%clk 0:02:57]} 4. Nf3 {[%clk 0:03:01]}  dxe5 {[%clk 0:02:57]} 5. Nxe5 {[%clk 0:03:02]}  c6 {[%clk 0:02:58]} 6. Bd3 {[%clk 0:02:59]}  Nd7 {[%clk 0:02:57]} 7. Nf3 {[%clk 0:02:58]}  N7f6 {[%clk 0:02:57]} 8. h3 {[%clk 0:02:57]}  Nb4 {[%clk 0:02:57]} 9. Bc4 {[%clk 0:02:55]}  Bf5 {[%clk 0:02:58]} 10. Bb3 {[%clk 0:02:56]}  e6 {[%clk 0:02:57]} 11. O-O {[%clk 0:02:56]}  Be7 {[%clk 0:02:54]} 12. a3 {[%clk 0:02:54]}  Nbd5 {[%clk 0:02:53]} 13. c4 {[%clk 0:02:54]}  Nb6 {[%clk 0:02:53]} 14. Nc3 {[%clk 0:02:53]}  h6 {[%clk 0:02:51]} 15. Qe2 {[%clk 0:02:53]}  O-O {[%clk 0:02:51]} 16. Rd1 {[%clk 0:02:53]}  Qc7 {[%clk 0:02:48]} 17. Ne5 {[%clk 0:02:51]}  Rad8 {[%clk 0:02:47]} 18. Bf4 {[%clk 0:02:50]}  Qc8 {[%clk 0:02:46]} 19. Rac1 {[%clk 0:02:48]}  Rfe8 {[%clk 0:02:45]} 20. Qf3 {[%clk 0:02:44]}  Nbd7 {[%clk 0:02:42]} 21. d5 {[%clk 0:02:30]}  Nxe5 {[%clk 0:02:28]} 22. Bxe5 {[%clk 0:02:31]}  Nd7 {[%clk 0:02:28]} 23. Bf4 {[%clk 0:02:22]}  Bf8 {[%clk 0:02:11]} 24. Ba2 {[%clk 0:02:20]}  a5 {[%clk 0:02:07]} 25. Qg3 {[%clk 0:02:13]}  Bg6 {[%clk 0:01:56]} 26. Bc7 {[%clk 0:02:10]}  Nc5 {[%clk 0:01:47]} 27. Bxd8 {[%clk 0:02:07]}  Rxd8 {[%clk 0:01:48]} 28. d6 {[%clk 0:01:53]}  Qb8 {[%clk 0:01:44]} 29. b4 {[%clk 0:01:47]}  axb4 {[%clk 0:01:41]} 30. axb4 {[%clk 0:01:48]}  Na6 {[%clk 0:01:41]} 31. c5 {[%clk 0:01:45]}  Nxb4 {[%clk 0:01:42]} 32. Bxe6 {[%clk 0:01:33]}  Kh7 {[%clk 0:01:36]} 33. Qf4 {[%clk 0:01:22]}  Na6 {[%clk 0:01:33]} 34. Bxf7 {[%clk 0:01:19]}  Nxc5 {[%clk 0:01:11]} 35. Bxg6+ {[%clk 0:01:18]}  Kxg6 {[%clk 0:01:10]} 36. Qg4+ {[%clk 0:01:12]} 1-0


[Site "https://www.chess.com"]

[Event "Titled Tuesday Blitz May 16 Late 2023"]
[White "Bluebaum, Matthias"]
[Black "Milikow, Yoav"]
[WhiteFideId "24651516"]
[BlackFideId "2822237"]
[WhiteElo "2639"]
[BlackElo "2410"]
[Result "1-0"]
[Round "06"]
[TimeControl "180+2"]
[Date "2023.05.16"]
[WhiteClock "0:01:43"]
[BlackClock "0:00:08"]

1. d4 {[%clk 0:03:00]}  d5 {[%clk 0:02:57]} 2. c4 {[%clk 0:03:01]}  e6 {[%clk 0:02:56]} 3. Nc3 {[%clk 0:03:01]}  Nf6 {[%clk 0:02:53]} 4. cxd5 {[%clk 0:03:02]}  exd5 {[%clk 0:02:54]} 5. Bf4 {[%clk 0:03:02]}  Bd6 {[%clk 0:02:50]} 6. Bxd6 {[%clk 0:03:02]}  Qxd6 {[%clk 0:02:50]} 7. e3 {[%clk 0:03:03]}  O-O {[%clk 0:02:31]} 8. Bd3 {[%clk 0:03:02]}  Bg4 {[%clk 0:02:27]} 9. f3 {[%clk 0:03:00]}  Bh5 {[%clk 0:02:26]} 10. Nge2 {[%clk 0:03:01]}  Re8 {[%clk 0:02:19]} 11. Qd2 {[%clk 0:03:00]}  Qe7 {[%clk 0:02:13]} 12. Kf2 {[%clk 0:02:49]}  Bg6 {[%clk 0:02:11]} 13. Bxg6 {[%clk 0:02:46]}  hxg6 {[%clk 0:02:12]} 14. h4 {[%clk 0:02:46]}  Nbd7 {[%clk 0:02:08]} 15. Nf4 {[%clk 0:02:47]}  Nb6 {[%clk 0:01:47]} 16. b3 {[%clk 0:02:43]}  c5 {[%clk 0:01:26]} 17. dxc5 {[%clk 0:02:43]}  Qxc5 {[%clk 0:01:26]} 18. Rac1 {[%clk 0:02:42]}  Qb4 {[%clk 0:01:08]} 19. Qd4 {[%clk 0:02:35]}  Qa5 {[%clk 0:00:57]} 20. Rc2 {[%clk 0:02:25]}  Rac8 {[%clk 0:00:56]} 21. Rhc1 {[%clk 0:02:24]}  Red8 {[%clk 0:00:51]} 22. g4 {[%clk 0:02:22]}  Qa3 {[%clk 0:00:41]} 23. g5 {[%clk 0:02:19]}  Ne8 {[%clk 0:00:41]} 24. h5 {[%clk 0:02:18]}  gxh5 {[%clk 0:00:38]} 25. Nxh5 {[%clk 0:02:19]}  Qd6 {[%clk 0:00:35]} 26. Rh1 {[%clk 0:02:15]}  Qg6 {[%clk 0:00:33]} 27. Rcc1 {[%clk 0:02:05]}  Rc6 {[%clk 0:00:21]} 28. Qh4 {[%clk 0:02:00]}  Kf8 {[%clk 0:00:17]} 29. Nf4 {[%clk 0:02:01]}  Qf5 {[%clk 0:00:16]} 30. g6 {[%clk 0:02:00]}  f6 {[%clk 0:00:15]} 31. Qh8+ {[%clk 0:01:50]}  Ke7 {[%clk 0:00:15]} 32. Qg8 {[%clk 0:01:51]}  d4 {[%clk 0:00:11]} 33. Qf7+ {[%clk 0:01:47]}  Kd6 {[%clk 0:00:11]} 34. Ne4+ {[%clk 0:01:48]}  Ke5 {[%clk 0:00:09]} 35. Qe7+ {[%clk 0:01:47]}  Re6 {[%clk 0:00:08]} 36. Rc5+ {[%clk 0:01:43]}  Nd5 {[%clk 0:00:08]} 37. Nd3# {[%clk 0:01:43]} 1-0


[Site "https://www.chess.com"]

[Event "Titled Tuesday Blitz May 16 Late 2023"]
[White "Grinev, Valeriy"]
[Black "Xiong, Jeffery"]
[WhiteFideId "14117517"]
[BlackFideId "2047640"]
[WhiteElo "2366"]
[BlackElo "2726"]
[Result "0-1"]
[Round "06"]
[TimeControl "180+2"]
[Date "2023.05.16"]
[WhiteClock "0:00:05"]
[BlackClock "0:01:16"]

1. d4 {[%clk 0:03:00]}  d5 {[%clk 0:03:00]} 2. c4 {[%clk 0:03:01]}  e6 {[%clk 0:03:00]} 3. Nc3 {[%clk 0:03:01]}  Nf6 {[%clk 0:03:01]} 4. cxd5 {[%clk 0:03:01]}  exd5 {[%clk 0:03:01]} 5. Bg5 {[%clk 0:03:01]}  c6 {[%clk 0:03:02]} 6. e3 {[%clk 0:03:01]}  Bd6 {[%clk 0:03:02]} 7. Bd3 {[%clk 0:03:00]}  O-O {[%clk 0:03:03]} 8. Nge2 {[%clk 0:02:59]}  Re8 {[%clk 0:03:02]} 9. Qc2 {[%clk 0:02:58]}  h6 {[%clk 0:03:02]} 10. Bh4 {[%clk 0:02:58]}  a5 {[%clk 0:03:03]} 11. h3 {[%clk 0:02:54]}  Na6 {[%clk 0:03:03]} 12. a3 {[%clk 0:02:54]}  Nc7 {[%clk 0:03:04]} 13. O-O {[%clk 0:02:51]}  Ne6 {[%clk 0:03:04]} 14. f3 {[%clk 0:02:45]}  Ng5 {[%clk 0:03:03]} 15. f4 {[%clk 0:02:45]}  Ne6 {[%clk 0:03:01]} 16. Rae1 {[%clk 0:02:34]}  Be7 {[%clk 0:03:01]} 17. Kh2 {[%clk 0:02:21]}  Bd7 {[%clk 0:02:45]} 18. Bf2 {[%clk 0:02:02]}  b5 {[%clk 0:02:44]} 19. Ng1 {[%clk 0:02:01]}  b4 {[%clk 0:02:42]} 20. axb4 {[%clk 0:02:00]}  axb4 {[%clk 0:02:43]} 21. Nce2 {[%clk 0:01:53]}  c5 {[%clk 0:02:42]} 22. Nf3 {[%clk 0:01:52]}  c4 {[%clk 0:02:36]} 23. Bf5 {[%clk 0:01:52]}  Nf8 {[%clk 0:02:36]} 24. Ne5 {[%clk 0:01:48]}  Bxf5 {[%clk 0:02:32]} 25. Qxf5 {[%clk 0:01:49]}  Qc8 {[%clk 0:02:33]} 26. Qb1 {[%clk 0:01:42]}  Ne4 {[%clk 0:02:33]} 27. Rd1 {[%clk 0:01:29]}  f6 {[%clk 0:02:33]} 28. Nf3 {[%clk 0:01:22]}  Nxf2 {[%clk 0:02:31]} 29. Rxf2 {[%clk 0:01:22]}  Bd6 {[%clk 0:02:32]} 30. Qc1 {[%clk 0:01:20]}  Qe6 {[%clk 0:02:32]} 31. Nh4 {[%clk 0:01:00]}  Qxe3 {[%clk 0:02:31]} 32. Qxe3 {[%clk 0:01:00]}  Rxe3 {[%clk 0:02:32]} 33. Nf5 {[%clk 0:01:00]}  Re6 {[%clk 0:02:33]} 34. Nxd6 {[%clk 0:00:52]}  Rxd6 {[%clk 0:02:34]} 35. f5 {[%clk 0:00:53]}  g5 {[%clk 0:01:51]} 36. fxg6 {[%clk 0:00:46]}  Nxg6 {[%clk 0:01:52]} 37. Ng3 {[%clk 0:00:47]}  Re6 {[%clk 0:01:52]} 38. Nf5 {[%clk 0:00:46]}  Kh7 {[%clk 0:01:52]} 39. Kg1 {[%clk 0:00:43]}  Raa6 {[%clk 0:01:50]} 40. Kf1 {[%clk 0:00:41]}  Ne7 {[%clk 0:01:50]} 41. Nxe7 {[%clk 0:00:37]}  Rxe7 {[%clk 0:01:51]} 42. Rf5 {[%clk 0:00:38]}  Rd6 {[%clk 0:01:50]} 43. Re1 {[%clk 0:00:38]}  Rxe1+ {[%clk 0:01:49]} 44. Kxe1 {[%clk 0:00:39]}  Kg6 {[%clk 0:01:50]} 45. g4 {[%clk 0:00:37]}  Kf7 {[%clk 0:01:30]} 46. Kd2 {[%clk 0:00:32]}  Ke6 {[%clk 0:01:26]} 47. Rh5 {[%clk 0:00:33]}  Ra6 {[%clk 0:01:27]} 48. Rxh6 {[%clk 0:00:33]}  Ra2 {[%clk 0:01:20]} 49. Kc1 {[%clk 0:00:29]}  Ra1+ {[%clk 0:01:20]} 50. Kd2 {[%clk 0:00:27]}  Rg1 {[%clk 0:01:18]} 51. Rh8 {[%clk 0:00:23]}  Rg2+ {[%clk 0:01:18]} 52. Kc1 {[%clk 0:00:23]}  b3 {[%clk 0:01:17]} 53. Re8+ {[%clk 0:00:22]}  Kd7 {[%clk 0:01:18]} 54. Rf8 {[%clk 0:00:20]}  Ke7 {[%clk 0:01:17]} 55. Ra8 {[%clk 0:00:19]}  Rc2+ {[%clk 0:01:18]} 56. Kb1 {[%clk 0:00:20]}  Rh2 {[%clk 0:01:18]} 57. Kc1 {[%clk 0:00:20]}  Rxh3 {[%clk 0:01:18]} 58. Ra7+ {[%clk 0:00:16]}  Ke6 {[%clk 0:01:17]} 59. Ra6+ {[%clk 0:00:16]}  Kf7 {[%clk 0:01:17]} 60. Rd6 {[%clk 0:00:16]}  Rh1+ {[%clk 0:01:18]} 61. Kd2 {[%clk 0:00:15]}  Rh2+ {[%clk 0:01:18]} 62. Kc1 {[%clk 0:00:15]}  Rc2+ {[%clk 0:01:19]} 63. Kb1 {[%clk 0:00:15]}  Rd2 {[%clk 0:01:19]} 64. Kc1 {[%clk 0:00:16]}  Rxd4 {[%clk 0:01:19]} 65. Rd8 {[%clk 0:00:11]}  Ke6 {[%clk 0:01:17]} 66. Re8+ {[%clk 0:00:10]}  Kd7 {[%clk 0:01:17]} 67. Rg8 {[%clk 0:00:10]}  Rf4 {[%clk 0:01:17]} 68. g5 {[%clk 0:00:10]}  Rf1+ {[%clk 0:01:17]} 69. Kd2 {[%clk 0:00:09]}  Rf2+ {[%clk 0:01:17]} 70. Kc1 {[%clk 0:00:09]}  Rc2+ {[%clk 0:01:17]} 71. Kd1 {[%clk 0:00:09]}  Rxb2 {[%clk 0:01:16]} 72. gxf6 {[%clk 0:00:09]}  Rf2 {[%clk 0:01:16]} 73. Rg5 {[%clk 0:00:05]}  Ke6 {[%clk 0:01:16]} 0-1


[Site "https://www.chess.com"]

[Event "Titled Tuesday Blitz May 16 Late 2023"]
[White "Naroditsky, Daniel"]
[Black "Matinian, Nikita"]
[WhiteFideId "2026961"]
[BlackFideId "24129100"]
[WhiteElo "2633"]
[BlackElo "2422"]
[Result "0-1"]
[Round "06"]
[TimeControl "180+2"]
[Date "2023.05.16"]
[WhiteClock "0:00:09"]
[BlackClock "0:00:07"]

1. e4 {[%clk 0:03:00]}  d6 {[%clk 0:03:00]} 2. d4 {[%clk 0:03:00]}  g6 {[%clk 0:03:01]} 3. Nc3 {[%clk 0:03:00]}  Bg7 {[%clk 0:03:01]} 4. Be2 {[%clk 0:02:57]}  Nf6 {[%clk 0:02:58]} 5. Nf3 {[%clk 0:02:57]}  O-O {[%clk 0:02:57]} 6. O-O {[%clk 0:02:57]}  Nc6 {[%clk 0:02:57]} 7. h3 {[%clk 0:02:54]}  e5 {[%clk 0:02:53]} 8. dxe5 {[%clk 0:02:54]}  dxe5 {[%clk 0:02:52]} 9. Bc4 {[%clk 0:02:52]}  Qe7 {[%clk 0:02:47]} 10. Bg5 {[%clk 0:02:50]}  Qc5 {[%clk 0:02:17]} 11. Bb3 {[%clk 0:02:38]}  Nd4 {[%clk 0:02:17]} 12. Qd3 {[%clk 0:02:14]}  Nxb3 {[%clk 0:02:09]} 13. axb3 {[%clk 0:02:13]}  Be6 {[%clk 0:02:09]} 14. Rad1 {[%clk 0:02:11]}  c6 {[%clk 0:02:01]} 15. Be3 {[%clk 0:02:04]}  Qa5 {[%clk 0:02:00]} 16. Qd6 {[%clk 0:01:54]}  Nh5 {[%clk 0:01:16]} 17. Ra1 {[%clk 0:01:42]}  Qd8 {[%clk 0:01:07]} 18. Qxd8 {[%clk 0:01:41]}  Rfxd8 {[%clk 0:01:08]} 19. Bxa7 {[%clk 0:01:39]}  Nf4 {[%clk 0:01:05]} 20. Bb6 {[%clk 0:01:39]}  Re8 {[%clk 0:01:02]} 21. Bc7 {[%clk 0:01:29]}  f6 {[%clk 0:00:57]} 22. Rfd1 {[%clk 0:01:22]}  g5 {[%clk 0:00:54]} 23. Ne1 {[%clk 0:01:12]}  h5 {[%clk 0:00:53]} 24. Kh2 {[%clk 0:01:11]}  Kf7 {[%clk 0:00:51]} 25. Na4 {[%clk 0:01:07]}  g4 {[%clk 0:00:50]} 26. h4 {[%clk 0:01:05]}  f5 {[%clk 0:00:42]} 27. Nc5 {[%clk 0:00:59]}  b5 {[%clk 0:00:26]} 28. Nxe6 {[%clk 0:00:52]}  Nxe6 {[%clk 0:00:23]} 29. Rxa8 {[%clk 0:00:51]}  Rxa8 {[%clk 0:00:23]} 30. exf5 {[%clk 0:00:52]}  Nd4 {[%clk 0:00:23]} 31. Nd3 {[%clk 0:00:44]}  Re8 {[%clk 0:00:14]} 32. Nc5 {[%clk 0:00:39]}  Nxf5 {[%clk 0:00:12]} 33. Ne4 {[%clk 0:00:37]}  Kg8 {[%clk 0:00:08]} 34. g3 {[%clk 0:00:36]}  Nd4 {[%clk 0:00:07]} 35. c3 {[%clk 0:00:33]}  Nf3+ {[%clk 0:00:07]} 36. Kg2 {[%clk 0:00:33]}  Ra8 {[%clk 0:00:04]} 37. Ng5 {[%clk 0:00:21]}  Nxg5 {[%clk 0:00:03]} 38. hxg5 {[%clk 0:00:22]}  Ra2 {[%clk 0:00:03]} 39. g6 {[%clk 0:00:21]}  Bf6 {[%clk 0:00:03]} 40. Rd6 {[%clk 0:00:07]}  Kg7 {[%clk 0:00:04]} 41. Rxc6 {[%clk 0:00:07]}  Rxb2 {[%clk 0:00:04]} 42. b4 {[%clk 0:00:08]}  e4 {[%clk 0:00:04]} 43. Bf4 {[%clk 0:00:07]}  Rc2 {[%clk 0:00:03]} 44. Be3 {[%clk 0:00:06]}  Rxc3 {[%clk 0:00:03]} 45. Rxf6 {[%clk 0:00:06]}  Rxe3 {[%clk 0:00:02]} 46. Rf5 {[%clk 0:00:05]}  Rb3 {[%clk 0:00:02]} 47. Rxh5 {[%clk 0:00:03]}  Rxb4 {[%clk 0:00:02]} 48. Rg5 {[%clk 0:00:04]}  Rb2 {[%clk 0:00:02]} 49. Kf1 {[%clk 0:00:03]}  b4 {[%clk 0:00:03]} 50. Rxg4 {[%clk 0:00:04]}  e3 {[%clk 0:00:03]} 51. fxe3 {[%clk 0:00:04]}  b3 {[%clk 0:00:04]} 52. Rg5 {[%clk 0:00:03]}  Rc2 {[%clk 0:00:03]} 53. Rb5 {[%clk 0:00:01]}  b2 {[%clk 0:00:04]} 54. Rb7+ {[%clk 0:00:02]}  Kxg6 {[%clk 0:00:04]} 55. Rb6+ {[%clk 0:00:03]}  Kg5 {[%clk 0:00:04]} 56. Ke1 {[%clk 0:00:03]}  Rc1+ {[%clk 0:00:04]} 57. Kf2 {[%clk 0:00:04]}  b1=Q {[%clk 0:00:05]} 58. Rxb1 {[%clk 0:00:05]}  Rxb1 {[%clk 0:00:05]} 59. Kf3 {[%clk 0:00:06]}  Rb3 {[%clk 0:00:06]} 60. Ke4 {[%clk 0:00:06]}  Kg4 {[%clk 0:00:06]} 61. Kd4 {[%clk 0:00:07]}  Kxg3 {[%clk 0:00:07]} 62. e4 {[%clk 0:00:08]}  Kf4 {[%clk 0:00:07]} 63. e5 {[%clk 0:00:09]} 0-1


[Site "https://www.chess.com"]

[Event "Titled Tuesday Blitz May 16 Late 2023"]
[White "Mahdavi, Reza"]
[Black "Sarana, Alexey"]
[WhiteFideId "12595926"]
[BlackFideId "24133795"]
[WhiteElo "2352"]
[BlackElo "2714"]
[Result "0-1"]
[Round "06"]
[TimeControl "180+2"]
[Date "2023.05.16"]
[WhiteClock "0:00:33"]
[BlackClock "0:01:20"]

1. e4 {[%clk 0:03:00]}  e5 {[%clk 0:02:59]} 2. Nf3 {[%clk 0:03:00]}  Nc6 {[%clk 0:03:00]} 3. Nc3 {[%clk 0:03:01]}  Nf6 {[%clk 0:02:59]} 4. d4 {[%clk 0:03:02]}  Bb4 {[%clk 0:02:59]} 5. Nxe5 {[%clk 0:03:02]}  Qe7 {[%clk 0:02:54]} 6. Qd3 {[%clk 0:03:02]}  Bxc3+ {[%clk 0:02:53]} 7. Qxc3 {[%clk 0:03:00]}  Nxe4 {[%clk 0:02:54]} 8. Qe3 {[%clk 0:03:01]}  Nd6 {[%clk 0:02:54]} 9. Nxc6 {[%clk 0:03:00]}  dxc6 {[%clk 0:02:50]} 10. Qxe7+ {[%clk 0:03:00]}  Kxe7 {[%clk 0:02:51]} 11. Bf4 {[%clk 0:03:00]}  Bf5 {[%clk 0:02:48]} 12. O-O-O {[%clk 0:03:00]}  Rad8 {[%clk 0:02:47]} 13. f3 {[%clk 0:03:00]}  h5 {[%clk 0:02:46]} 14. h4 {[%clk 0:02:57]}  Rhe8 {[%clk 0:02:45]} 15. Be2 {[%clk 0:02:53]}  Kd7 {[%clk 0:02:45]} 16. Rde1 {[%clk 0:02:52]}  Re7 {[%clk 0:02:44]} 17. Bd1 {[%clk 0:02:51]}  f6 {[%clk 0:02:38]} 18. Rxe7+ {[%clk 0:02:42]}  Kxe7 {[%clk 0:02:39]} 19. Re1+ {[%clk 0:02:43]}  Kd7 {[%clk 0:02:39]} 20. c3 {[%clk 0:02:42]}  Be6 {[%clk 0:02:38]} 21. b3 {[%clk 0:02:41]}  Nf5 {[%clk 0:02:37]} 22. g3 {[%clk 0:02:36]}  Nd6 {[%clk 0:02:33]} 23. Bc2 {[%clk 0:02:33]}  Bd5 {[%clk 0:02:24]} 24. Re3 {[%clk 0:02:28]}  Rh8 {[%clk 0:02:12]} 25. Bg6 {[%clk 0:02:16]}  Bf7 {[%clk 0:02:06]} 26. Bxd6 {[%clk 0:02:07]}  Bxg6 {[%clk 0:02:06]} 27. Ba3 {[%clk 0:01:57]}  Rg8 {[%clk 0:02:02]} 28. Kd2 {[%clk 0:01:56]}  Bf5 {[%clk 0:01:59]} 29. Re7+ {[%clk 0:01:54]}  Kd8 {[%clk 0:01:59]} 30. Ke3 {[%clk 0:01:38]}  Bb1 {[%clk 0:01:49]} 31. Kd2 {[%clk 0:01:38]}  b6 {[%clk 0:01:38]} 32. Rf7 {[%clk 0:01:30]}  c5 {[%clk 0:01:26]} 33. dxc5 {[%clk 0:01:08]}  Bg6 {[%clk 0:01:27]} 34. cxb6 {[%clk 0:01:03]}  Bxf7 {[%clk 0:01:26]} 35. bxa7 {[%clk 0:01:04]}  Kd7 {[%clk 0:01:27]} 36. Bc5 {[%clk 0:01:04]}  Bd5 {[%clk 0:01:26]} 37. Ke3 {[%clk 0:01:00]}  Re8+ {[%clk 0:01:26]} 38. Kf4 {[%clk 0:01:00]}  Re2 {[%clk 0:01:26]} 39. b4 {[%clk 0:00:57]}  Rxa2 {[%clk 0:01:25]} 40. g4 {[%clk 0:00:57]}  hxg4 {[%clk 0:01:25]} 41. fxg4 {[%clk 0:00:58]}  Ke6 {[%clk 0:01:25]} 42. Ke3 {[%clk 0:00:53]}  Rg2 {[%clk 0:01:23]} 43. Kf4 {[%clk 0:00:50]}  g6 {[%clk 0:01:22]} 44. Bd4 {[%clk 0:00:48]}  Rh2 {[%clk 0:01:22]} 45. Kg3 {[%clk 0:00:46]}  Re2 {[%clk 0:01:22]} 46. Kf4 {[%clk 0:00:40]}  Re4+ {[%clk 0:01:22]} 47. Kg3 {[%clk 0:00:40]}  f5 {[%clk 0:01:20]} 48. gxf5+ {[%clk 0:00:40]}  Kxf5 {[%clk 0:01:21]} 49. Bc5 {[%clk 0:00:33]}  Rg4+ {[%clk 0:01:20]} 0-1


[Site "https://www.chess.com"]

[Event "Titled Tuesday Blitz May 16 Late 2023"]
[White "Hayrapetyan, Hovik"]
[Black "Zhigalko, Sergei"]
[WhiteFideId "13302639"]
[BlackFideId "13502956"]
[WhiteElo "2348"]
[BlackElo "2626"]
[Result "1/2-1/2"]
[Round "06"]
[TimeControl "180+2"]
[Date "2023.05.16"]
[WhiteClock "0:01:34"]
[BlackClock "0:01:43"]

1. d4 {[%clk 0:03:00]}  Nf6 {[%clk 0:03:00]} 2. c4 {[%clk 0:03:01]}  e6 {[%clk 0:03:00]} 3. Nc3 {[%clk 0:03:02]}  Bb4 {[%clk 0:03:00]} 4. Nf3 {[%clk 0:03:03]}  O-O {[%clk 0:03:00]} 5. Bg5 {[%clk 0:03:02]}  h6 {[%clk 0:03:00]} 6. Bh4 {[%clk 0:03:03]}  b6 {[%clk 0:03:00]} 7. e3 {[%clk 0:02:57]}  Bb7 {[%clk 0:03:00]} 8. Bd3 {[%clk 0:02:57]}  Bxc3+ {[%clk 0:02:58]} 9. bxc3 {[%clk 0:02:58]}  d6 {[%clk 0:02:59]} 10. O-O {[%clk 0:02:46]}  Nbd7 {[%clk 0:02:59]} 11. Nd2 {[%clk 0:02:44]}  c5 {[%clk 0:02:50]} 12. f4 {[%clk 0:02:43]}  Qc7 {[%clk 0:02:49]} 13. e4 {[%clk 0:02:18]}  cxd4 {[%clk 0:02:07]} 14. cxd4 {[%clk 0:02:19]}  e5 {[%clk 0:02:07]} 15. fxe5 {[%clk 0:02:18]}  dxe5 {[%clk 0:02:08]} 16. Bxf6 {[%clk 0:02:19]}  Nxf6 {[%clk 0:02:04]} 17. Rxf6 {[%clk 0:02:19]}  gxf6 {[%clk 0:01:50]} 18. Qg4+ {[%clk 0:02:18]}  Kh7 {[%clk 0:01:45]} 19. Qf5+ {[%clk 0:02:18]}  Kg7 {[%clk 0:01:45]} 20. Qg4+ {[%clk 0:02:06]}  Kh7 {[%clk 0:01:44]} 21. Qf5+ {[%clk 0:02:05]}  Kg7 {[%clk 0:01:44]} 22. Qg4+ {[%clk 0:01:34]}  Kh7 {[%clk 0:01:43]} 1/2-1/2


[Site "https://www.chess.com"]